bitfinex-derivatives/quotes_ETHF0:USTF0_20250331
["timestamp","ask_amount","ask_price","bid_price","bid_amount"]
[1743429365909,5.5319,1824.0,1823.4,2.75080068]
[1743429366103,5.5319,1824.0,1823.5,10.469]
[1743429366297,5.5319,1824.0,1823.5,7.2612]
[1743429366607,3.2078,1824.2,1823.7,2.74213]
[1743429366810,3.2078,1824.2,1823.7,3.2078]
[1743429367106,3.2078,1824.2,1824.0,1.09664]
[1743429367315,3.2078,1824.2,1823.5,5.067]
[1743429367316,2.2218,1824.1,1823.9,1.09672]
[1743429367622,1.09669,1824.0,1823.8,2.1942]
[1743429367801,3.31859,1823.9,1823.5,2.1942]
[1743429367998,2.2218,1823.9,1823.5,2.1942]
[1743429368200,3.2078,1823.8,1823.4,0.00823068]
[1743429368404,3.2078,1823.8,1823.7,1.09686]
[1743429368604,2.2653,1824.0,1823.5,2.74245]
[1743429368899,2.3664,1823.9,1823.7,1.09683]
[1743429369106,2.3664,1823.9,1823.4,0.00823068]
[1743429369413,3.2078,1823.5,1823.4,0.00823068]
[1743429369712,7.7708,1823.9,1823.7,1.09684]
[1743429369909,7.7708,1823.9,1823.5,2.3709]
[1743429370104,4.563,1823.9,1823.8,1.0968]
[1743429370409,3.2078,1824.3,1824.2,1.09652]
[1743429370610,3.2078,1824.9,1824.2,10.8768]
[1743429370818,2.3664,1824.8,1824.6,1.0963]
[1743429371003,3.2078,1824.7,1824.3,5.11216]
[1743429371208,3.2078,1824.7,1824.1,0.00823068]
[1743429371209,3.2078,1824.7,1824.4,2.3709]
[1743429371409,2.3664,1824.8,1824.4,2.3709]
[1743429371603,2.3664,1824.8,1824.4,5.112]
[1743429371809,3.2078,1824.5,1824.1,4.31264068]
[1743429372106,3.2078,1824.3,1823.6,2.74232]
[1743429372307,3.2078,1824.0,1823.4,7.94259]
[1743429372511,3.2078,1824.0,1823.8,1.09676]
[1743429372718,3.2078,1824.0,1823.5,2.3394]
[1743429372909,3.2078,1824.0,1823.7,1.09686]
[1743429373113,5.5248,1824.2,1823.7,2.74217]
[1743429373312,5.5248,1824.2,1824.1,1.09662]
[1743429374027,3.2078,1824.2,1824.1,1.09662]
[1743429374212,3.2078,1824.2,1823.7,0.00823068]
[1743429374417,1.09677,1823.9,1823.7,0.00823068]
[1743429374613,7.7578,1823.8,1823.7,0.00823068]
[1743429375023,7.7578,1823.8,1823.7,1.10509068]
[1743429375233,4.55,1823.8,1823.7,1.10509068]
[1743429375429,4.55,1823.8,1823.7,0.00823068]
[1743429375729,4.55,1823.8,1823.7,1.10509068]
[1743429376233,5.6468,1823.8,1823.7,1.10509068]
[1743429376528,5.6468,1823.8,1823.7,0.00823068]
[1743429376922,8.1468,1823.8,1823.7,0.00823068]
[1743429377325,7.05,1823.8,1823.5,1.09696]
[1743429377521,4.30474,1823.6,1823.5,1.09696]
[1743429377727,3.2078,1823.6,1823.5,1.09696]
[1743429378321,1.09718,1823.2,1823.1,1.09721]
[1743429378630,5.7078,1823.6,1822.3,0.4308166]
[1743429378631,5.95062,1823.3,1822.5,2.74389]
[1743429378925,3.2078,1823.0,1822.4,2.74412]
[1743429379116,3.2078,1823.0,1822.7,0.00823068]
[1743429379319,3.2078,1823.0,1822.9,1.09735]
[1743429379520,3.2078,1823.0,1822.8,1.09739]
[1743429379731,3.2078,1823.0,1822.8,1.09738]
[1743429379929,3.2078,1823.0,1822.7,0.00823068]
[1743429379930,3.2078,1823.0,1822.9,1.09735]
[1743429380525,3.2078,1823.0,1822.7,0.00823068]
[1743429380727,1.09735,1822.9,1822.7,0.00823068]
[1743429380921,4.30521,1822.8,1822.7,0.00823068]
[1743429381117,3.2078,1822.8,1822.6,1.09747]
[1743429381323,3.2078,1822.8,1822.7,1.09747]
[1743429381525,3.2078,1823.0,1822.5,2.74397]
[1743429381735,1.09741,1822.8,1822.5,2.3276]
[1743429381928,3.2078,1823.0,1822.5,2.3276]
[1743429382229,1.09741,1822.8,1822.4,5.95191]
[1743429382428,1.09747,1822.7,1822.6,1.10571068]
[1743429382629,1.09747,1822.7,1822.6,0.00823068]
[1743429383019,7.816,1822.7,1822.0,5.07232]
[1743429383326,7.816,1822.7,1822.5,1.09759]
[1743429383327,2.2457,1822.6,1822.5,1.09759]
[1743429384128,3.2078,1823.1,1822.5,5.95177]
[1743429384333,2.2314,1823.0,1822.9,1.09735]
[1743429384532,2.37,1823.0,1822.9,1.09735]
[1743429384829,2.37,1823.0,1822.5,2.74397]
[1743429384830,4.87,1823.0,1822.5,3.2078]
[1743429385133,4.87,1823.0,1822.6,1.09753]
[1743429385134,1.09751,1822.7,1822.6,1.09753]
[1743429385431,1.09754,1822.6,1822.5,1.09755]
[1743429385624,4.6636,1822.6,1822.4,0.00823068]
[1743429385818,4.6636,1822.6,1822.5,1.09759]
[1743429387525,4.6636,1822.6,1822.4,0.00823068]
[1743429387733,1.09759,1822.5,1822.4,0.00823068]
[1743429388029,3.42459,1822.5,1822.4,0.00823068]
[1743429388226,5.92459,1822.5,1822.4,0.00823068]
[1743429388430,3.42459,1822.5,1822.4,0.00823068]
[1743429388825,2.327,1822.5,1822.4,1.10588068]
[1743429390232,3.42459,1822.5,1822.4,0.00823068]
[1743429390426,3.42459,1822.5,1822.4,1.10588068]
[1743429390631,3.42459,1822.5,1822.4,0.00823068]
[1743429391032,1.09786,1822.1,1821.8,2.74496]
[1743429391237,2.1975,1822.0,1821.9,1.09795]
[1743429391537,6.50324,1822.0,1821.9,1.09795]
[1743429391831,6.50324,1822.0,1821.6,2.1909]
[1743429391832,1.09801,1821.8,1821.6,2.1909]
[1743429392042,3.2956,1821.7,1821.6,1.09813]
[1743429392330,3.29559,1821.7,1821.6,1.09813]
[1743429392533,2.1975,1821.7,1821.5,0.00823068]
[1743429392724,4.30593,1821.6,1821.5,0.00823068]
[1743429392924,1.09832,1821.3,1821.2,1.09834]
[1743429393230,3.2078,1821.3,1821.2,1.09837]
[1743429393424,4.30611,1821.3,1821.2,1.09837]
[1743429393630,5.5553,1821.3,1821.1,2.37]
[1743429393834,5.5553,1821.3,1821.1,1.09842]
[1743429394136,0.43025373,1821.7,1821.6,1.09813]
[1743429394334,2.3475,1821.8,1821.7,1.09807]
[1743429394633,5.5553,1821.8,1821.2,2.74585]
[1743429394825,1.09827,1821.4,1821.1,3.2078]
[1743429395030,2.3475,1821.3,1821.0,0.00556713]
[1743429395231,4.7027,1821.3,1821.0,1.10402713]
[1743429395426,4.7027,1821.3,1821.0,2.37556713]
[1743429395639,3.2078,1821.1,1821.0,0.00556713]
[1743429395831,4.30623,1821.1,1821.0,0.00556713]
[1743429396131,5.80103,1821.3,1821.1,1.09841]
[1743429396338,4.7027,1821.3,1821.0,0.00556713]
[1743429396533,5.80103,1821.3,1821.1,1.09839]
[1743429396733,4.7027,1821.3,1821.1,2.2821]
[1743429396929,2.3948,1821.5,1821.4,1.09825]
[1743429397140,2.2434,1821.6,1821.5,1.09819]
[1743429398438,2.2434,1821.6,1821.1,5.95384]
[1743429398633,2.2434,1821.6,1821.3,2.2821]
[1743429398832,1.09821,1821.5,1821.3,3.38038]
[1743429399040,2.2434,1821.4,1821.3,2.2821]
[1743429399234,3.2078,1821.6,1821.3,2.2821]
[1743429399433,3.2078,1821.6,1821.5,1.09819]
[1743429399635,6.56273,1821.6,1821.3,2.2821]
[1743429399834,6.56273,1821.6,1821.4,1.09823]
[1743429400034,5.4646,1821.6,1821.5,1.09819]
[1743429400546,2.3552,1821.8,1821.7,1.09807]
[1743429400748,5.71001,1821.8,1821.6,1.09809]
[1743429401040,4.612,1821.8,1821.5,1.09815]
[1743429401243,4.612,1821.8,1821.4,2.2029]
[1743429401244,3.2078,1821.6,1821.4,2.2029]
[1743429401447,2.2568,1821.5,1821.4,3.30111]
[1743429401634,3.35501,1821.5,1821.3,1.09829]
[1743429401835,3.2078,1821.4,1821.0,0.00556713]
[1743429402139,2.2568,1821.3,1821.2,1.09835]
[1743429402337,2.3552,1821.8,1821.1,5.95388]
[1743429402541,2.3552,1821.8,1821.4,3.2078]
[1743429402834,2.3207,1821.7,1821.5,2.3548]
[1743429403036,2.3207,1821.7,1821.6,1.09813]
[1743429403641,0.00823068,1821.9,1821.8,1.09801]
[1743429404048,0.00823068,1821.9,1821.8,3.45281]
[1743429404338,1.10621068,1821.9,1821.7,1.09803]
[1743429404542,2.3207,1821.8,1821.6,2.3548]
[1743429404939,0.00823068,1821.9,1821.8,1.09801]
[1743429405135,3.28081068,1821.9,1821.7,1.09805]
[1743429405335,2.18283068,1821.9,1821.6,2.3548]
[1743429405836,2.18283068,1821.9,1821.8,1.09801]
[1743429406038,2.18283068,1821.9,1821.7,1.09803]
[1743429406345,1.09801,1821.8,1821.7,1.09803]
[1743429406644,1.09807,1821.7,1821.5,1.09816]
[1743429406847,1.09813,1821.6,1821.5,3.42306]
[1743429407147,1.09813,1821.6,1821.5,1.09816]
[1743429407345,5.62593,1821.7,1821.6,1.09813]
[1743429407545,3.45133,1821.7,1821.6,1.09813]
[1743429407748,1.09813,1821.6,1821.5,1.09813]
[1743429407944,1.09813,1821.6,1821.4,2.3249]
[1743429407945,3.45131,1821.7,1821.6,1.09813]
[1743429408145,1.09814,1821.6,1821.5,1.09814]
[1743429408649,3.45131,1821.7,1821.6,1.09813]
[1743429408946,8.00413068,1821.9,1821.5,5.9532]
[1743429408947,0.00823068,1821.9,1821.5,5.9532]
[1743429409249,1.10618068,1821.9,1821.8,1.09801]
[1743429409549,3.21603068,1821.9,1821.6,2.1757]
[1743429409853,1.10621068,1821.9,1821.8,1.09801]
[1743429410045,1.09803,1821.8,1821.7,1.09802]
[1743429410246,0.00823068,1821.9,1821.8,1.09801]
[1743429410541,0.00823068,1821.9,1821.7,4.30582]
[1743429410751,0.00823068,1821.9,1821.7,3.27372]
[1743429410752,1.09801,1821.8,1821.7,3.27372]
[1743429410945,1.10619068,1821.9,1821.8,1.09801]
[1743429411146,1.09801,1821.8,1821.7,3.27373]
[1743429411347,3.21603068,1821.9,1821.5,3.2078]
[1743429411641,1.09811,1821.7,1821.6,1.0981]
[1743429412243,1.09804,1821.8,1821.7,1.09802]
[1743429412445,1.0981,1821.7,1821.6,1.09809]
[1743429412646,1.09813,1821.6,1821.5,3.37954]
[1743429412952,1.09839,1821.2,1821.1,1.09837]
[1743429413245,1.09843,1821.1,1820.8,4.30638]
[1743429413445,1.09867,1820.7,1820.6,2.2814]
[1743429413648,1.09867,1820.7,1819.8,5.49599]
[1743429413649,1.09882,1820.5,1820.0,3.2078]
[1743429413841,3.2078,1820.5,1820.4,1.09885]
[1743429414244,4.30659,1820.5,1820.1,2.2814]
[1743429414551,3.2078,1820.5,1820.4,1.09885]
[1743429414759,3.21603068,1820.5,1820.4,1.09885]
[1743429415045,1.09888,1820.4,1820.2,2.3677]
[1743429415347,3.2078,1820.3,1819.9,2.74782]
[1743429415540,1.09891,1820.3,1820.0,2.3677]
[1743429415849,3.2078,1820.4,1820.0,2.3677]
[1743429416344,1.09901,1820.2,1820.0,3.46678]
[1743429416546,3.2078,1820.4,1820.0,2.3677]
[1743429416751,1.09903,1820.1,1820.0,2.3677]
[1743429417145,3.2078,1820.2,1819.8,1.09916]
[1743429417345,5.185,1820.1,1819.7,2.2533]
[1743429417546,8.50278,1820.1,1819.9,1.09913]
[1743429417746,1.09916,1819.9,1819.8,1.09919]
[1743429418039,1.09918,1819.9,1819.6,3.2078]
[1743429418247,1.09924,1819.8,1819.5,2.2533]
[1743429418452,3.2078,1820.0,1819.7,1.09924]
[1743429418751,1.09931,1819.7,1819.5,3.35268]
[1743429418954,1.09934,1819.6,1819.5,3.35268]
[1743429419253,5.184,1819.7,1819.2,2.74895]
[1743429419447,5.184,1819.7,1819.5,1.09937]
[1743429419745,1.10758068,1819.6,1819.4,1.0994]
[1743429419953,0.00823068,1819.6,1819.5,1.0994]
[1743429420457,0.00823068,1819.6,1819.3,2.2533]
[1743429420650,0.00823068,1819.6,1819.5,1.0994]
[1743429421251,0.00823068,1819.6,1819.4,1.09941]
[1743429421446,1.09946,1819.4,1818.9,5.95717]
[1743429421748,3.21603068,1819.6,1818.8,2.4013]
[1743429421749,3.21603068,1819.6,1819.1,3.2078]
[1743429421949,2.1816,1819.5,1819.0,2.3082]
[1743429422149,1.09949,1819.4,1819.2,1.09955]
[1743429422352,3.28104,1819.5,1819.0,5.05742]
[1743429422552,2.1816,1819.5,1819.3,1.09949]
[1743429422758,1.09947,1819.4,1819.3,1.09951]
[1743429423053,0.00823068,1819.6,1819.1,3.2078]
[1743429423251,0.00823068,1819.6,1819.5,1.0994]
[1743429423448,2.1816,1820.1,1819.9,1.09913]
[1743429423660,3.28068,1820.1,1819.9,1.09912]
[1743429423845,3.28068,1820.1,1819.6,5.00764]
[1743429423846,2.1816,1820.1,1819.6,2.2593]
[1743429424047,5.3894,1820.1,1819.5,5.95623]
[1743429424247,5.3894,1820.1,1819.6,2.2593]
[1743429424452,2.1777,1820.0,1819.9,1.09915]
[1743429424653,2.1777,1820.0,1819.8,1.09917]
[1743429424847,1.0992,1819.9,1819.7,3.36676068]
[1743429425042,2.1777,1819.8,1819.7,3.36676068]
[1743429425243,6.48471,1819.8,1819.7,0.00823068]
[1743429425457,3.27691,1819.8,1819.7,0.00823068]
[1743429426156,2.38543068,1820.0,1819.9,1.09915]
[1743429426347,5.66226068,1820.0,1819.8,3.35847]
[1743429426548,4.56313068,1820.0,1819.8,2.2593]
[1743429426749,2.18593068,1820.0,1819.9,3.32095]
[1743429427043,0.00823068,1820.0,1819.9,3.32095]
[1743429428946,0.00823068,1820.0,1819.9,10.94195]
[1743429429855,0.00823068,1820.0,1819.9,8.44195]
[1743429430156,0.00823068,1820.0,1819.9,3.32095]
[1743429431048,2.36103068,1820.0,1819.7,0.00823068]
[1743429431248,2.36103068,1820.0,1819.9,1.09915]
[1743429431857,1.09919,1819.9,1819.7,2.22393068]
[1743429432160,0.00823068,1820.0,1819.9,1.09915]
[1743429432348,2.36103068,1820.0,1819.9,1.09915]
[1743429432549,0.00823068,1820.0,1819.9,3.35155]
[1743429434260,9.1778,1821.3,1820.7,2.74669]
[1743429434455,2.3695,1821.2,1821.1,1.09843]
[1743429434652,2.2041,1821.2,1821.1,1.09843]
[1743429434954,2.3695,1821.6,1821.5,1.09819]
[1743429435157,2.2041,1821.7,1821.6,1.09813]
[1743429435452,2.21233068,1821.7,1821.6,1.09813]
[1743429435851,0.00823068,1821.7,1821.6,4.30593]
[1743429436056,0.00823068,1821.7,1821.6,4.64473904]
[1743429437665,3.2078,1822.6,1822.0,2.74462]
[1743429437856,2.2464,1822.5,1822.4,1.09765]
[1743429438051,2.2464,1822.5,1822.4,1.43645904]
[1743429438256,3.34399,1822.5,1822.4,0.33880904]
[1743429438956,5.84399,1822.5,1822.4,0.33880904]
[1743429439356,2.2464,1822.5,1822.4,0.33880904]
[1743429439762,3.34399,1822.5,1822.4,0.33880904]
[1743429439960,5.84399,1822.5,1822.4,0.33880904]
[1743429440462,7.49042,1822.5,1821.9,1.09792]
[1743429440658,1.09794,1822.0,1821.7,1.09803]
[1743429440857,2.4018,1821.9,1821.8,1.09801]
[1743429441061,3.49977,1821.9,1821.7,1.09805]
[1743429441271,3.49979,1821.9,1821.7,1.09807]
[1743429441561,2.4018,1821.9,1821.5,2.2591]
[1743429441765,2.4018,1821.9,1821.4,3.21603068]
[1743429441766,1.09819,1821.5,1821.4,0.00823068]
[1743429441964,4.30599,1821.5,1821.4,0.00823068]
[1743429442372,1.09834,1821.3,1821.1,1.09841]
[1743429442569,2.1987,1821.4,1821.2,1.09831]
[1743429442868,3.2078,1821.3,1820.9,3.33251]
[1743429443166,3.2078,1821.1,1820.6,1.09869]
[1743429443369,1.09861,1820.9,1820.7,1.09865]
[1743429443670,2.1987,1820.8,1820.7,0.00823068]
[1743429443870,2.1987,1820.8,1820.7,1.10690068]
[1743429444168,3.29731,1820.8,1820.7,0.00823068]
[1743429445067,1.09884,1820.5,1820.3,1.09889]
[1743429445266,2.3427,1820.4,1820.3,1.09889]
[1743429445468,1.09901,1820.2,1819.8,3.2078]
[1743429445674,2.3427,1820.1,1819.8,1.09918]
[1743429445971,2.3427,1820.1,1819.7,2.2087]
[1743429446172,3.45000068,1820.1,1819.9,1.09915]
[1743429446370,2.35093068,1820.1,1819.8,0.00823068]
[1743429446559,1.09909,1820.0,1819.8,0.00823068]
[1743429446758,1.09909,1820.0,1819.9,1.09913]
[1743429446958,3.44999068,1820.1,1819.9,1.09913]
[1743429447179,1.09909,1820.0,1819.9,1.09913]
[1743429447363,2.3427,1820.0,1819.9,1.09915]
[1743429447673,3.44179,1820.0,1819.8,1.10740068]
[1743429447866,2.3427,1820.0,1819.8,0.00823068]
[1743429448066,2.3427,1820.0,1819.9,1.09915]
[1743429448273,0.00823068,1820.1,1820.0,1.09909]
[1743429449269,0.00823068,1820.1,1820.0,3.37319]
[1743429452664,8.71619,1821.1,1820.0,3.37319]
[1743429452665,3.2078,1821.1,1820.1,2.74756]
[1743429452870,1.09861,1820.9,1820.4,3.2078]
[1743429453175,3.42692,1820.8,1820.5,2.3097]
[1743429453381,1.09867,1820.7,1820.4,1.09883]
[1743429453572,2.3283,1820.6,1820.4,1.09881]
[1743429453983,2.3283,1820.6,1820.5,1.09879]
[1743429454675,2.3283,1820.6,1820.3,2.3097]
[1743429454875,2.3283,1820.6,1820.4,1.0988]
[1743429455077,2.3283,1820.6,1820.5,1.09879]
[1743429455276,0.00823068,1820.7,1820.6,1.09873]
[1743429455483,0.00823068,1820.7,1820.6,4.30653]
[1743429455671,2.3529,1821.1,1820.9,1.09851]
[1743429455872,2.3529,1821.1,1821.0,1.09849]
[1743429456278,8.2058,1821.5,1820.8,5.95432]
[1743429456279,3.2078,1821.5,1820.9,5.09088]
[1743429456476,4.6596,1821.7,1821.3,1.09831]
[1743429456477,2.3529,1821.4,1821.3,1.09831]
[1743429457283,2.3529,1821.4,1821.2,5.56063068]
[1743429457476,2.3529,1821.4,1821.3,1.09831]
[1743429457672,0.00823068,1821.5,1821.4,1.09825]
[1743429458075,0.00823068,1821.5,1821.4,4.30605]
[1743429458474,0.00823068,1821.5,1821.2,2.35283068]
[1743429458475,3.21603068,1821.5,1821.2,0.00823068]
[1743429458685,3.2078,1821.3,1820.8,2.3708]
[1743429458885,1.09846,1821.1,1820.9,1.09852]
[1743429459081,2.3926,1821.0,1820.9,1.09852]
[1743429459384,1.09837,1821.2,1821.0,1.09847]
[1743429459584,2.3926,1821.1,1821.0,1.09849]
[1743429459775,2.3926,1821.1,1820.9,1.09852]
[1743429459975,2.3926,1821.1,1820.9,0.00823068]
[1743429459976,1.09849,1821.0,1820.9,0.00823068]
[1743429460184,2.3926,1821.1,1821.0,1.09849]
[1743429460377,3.49105,1821.1,1820.9,1.10673068]
[1743429460581,2.3926,1821.1,1821.0,1.09849]
[1743429460880,4.30615,1821.3,1821.2,1.09837]
[1743429461079,1.09837,1821.2,1821.0,2.3508]
[1743429461376,2.2703,1821.2,1821.1,1.09843]
[1743429462574,2.2703,1821.2,1820.9,0.00823068]
[1743429462781,1.09849,1821.0,1820.9,0.00823068]
[1743429462981,1.09845,1821.1,1820.9,1.10673068]
[1743429463178,2.2419,1821.0,1820.9,1.10673068]
[1743429463787,2.2419,1821.2,1821.1,1.09843]
[1743429464287,3.34027,1821.2,1821.1,1.09843]
[1743429464491,1.09843,1821.1,1820.9,4.31455068]
[1743429464680,2.2419,1821.0,1820.9,4.31455068]
[1743429464986,3.2078,1821.3,1821.2,1.09837]
[1743429465480,3.2078,1821.3,1821.0,5.01933]
[1743429465785,3.2078,1821.3,1821.2,1.09837]
[1743429466285,4.30615,1821.3,1821.0,2.2731]
[1743429466481,4.30612,1821.3,1821.2,1.09837]
[1743429466682,3.2078,1821.3,1821.0,3.37157]
[1743429466885,2.3027,1821.2,1821.0,2.2731]
[1743429467083,2.3027,1821.2,1821.1,1.09843]
[1743429468083,2.3027,1821.2,1820.9,4.31455068]
[1743429468376,2.3027,1821.2,1820.9,5.49363068]
[1743429468680,2.3027,1821.2,1821.0,1.09846]
[1743429468882,1.09849,1821.0,1820.9,0.00823068]
[1743429469282,1.09866,1820.8,1820.6,1.09868]
[1743429469485,2.3792,1821.0,1820.7,1.09867]
[1743429469680,1.09861,1820.8,1820.7,1.09867]
[1743429469880,1.0986,1820.9,1820.8,1.09861]
[1743429470279,3.2078,1820.9,1820.6,2.3056]
[1743429470476,1.09861,1820.8,1820.7,0.00823068]
[1743429470893,1.09861,1820.8,1820.7,1.10690068]
[1743429471187,1.09861,1820.8,1820.7,0.00823068]
[1743429471690,5.9542,1820.9,1820.6,1.09868]
[1743429471897,3.2078,1820.9,1820.4,5.05274]
[1743429472088,3.2078,1820.9,1820.5,2.74699]
[1743429472283,2.3792,1821.0,1820.9,1.09855]
[1743429472485,3.39913,1821.1,1821.0,1.09849]
[1743429472687,1.09853,1821.0,1820.9,1.09851]
[1743429472892,1.09858,1820.9,1820.8,1.09857]
[1743429473190,1.09854,1821.0,1820.9,1.09852]
[1743429473383,1.09854,1821.0,1820.7,2.296]
[1743429473384,1.09861,1820.8,1820.7,1.09862]
[1743429474183,1.09861,1820.8,1820.6,5.5038]
[1743429474184,1.09849,1821.0,1820.9,1.09853]
[1743429474383,1.09854,1821.0,1820.9,1.09853]
[1743429474780,5.5085,1821.1,1820.7,1.09863]
[1743429474781,1.09861,1820.8,1820.7,1.09863]
[1743429475186,1.09861,1820.8,1820.7,1.09867]
[1743429475887,1.09864,1820.8,1820.7,1.09863]
[1743429476292,1.09867,1820.7,1820.6,4.3065]
[1743429476492,1.09866,1820.8,1820.7,1.09866]
[1743429477082,1.09863,1820.8,1820.7,1.09863]
[1743429477786,1.09861,1820.9,1820.8,1.09859]
[1743429478087,1.09864,1820.8,1820.7,1.09863]
[1743429478587,5.5085,1821.1,1820.7,2.74669]
[1743429478794,1.09859,1820.9,1820.8,1.09858]
[1743429479291,1.09861,1820.8,1820.7,2.2326]
[1743429479493,1.09873,1820.6,1820.5,3.33133]
[1743429479695,1.09873,1820.6,1820.5,1.09873]
[1743429480085,8.34654,1820.8,1820.3,5.4404]
[1743429480397,1.09897,1820.2,1819.9,3.2078]
[1743429480591,1.09891,1820.4,1820.2,1.09894]
[1743429480786,0.00823068,1820.2,1820.1,1.09903]
[1743429480996,0.00823068,1820.2,1820.1,4.30683]
[1743429482695,9.4829,1820.8,1820.2,1.09897]
[1743429482995,9.4829,1820.8,1820.6,1.09871]
[1743429483204,1.09867,1820.7,1820.5,1.09875]
[1743429483494,9.4829,1820.8,1820.3,3.2078]
[1743429483792,9.4829,1820.8,1820.3,4.30669]
[1743429483793,15.43726,1820.8,1820.3,4.30669]
[1743429484095,1.09879,1820.5,1820.4,0.00823068]
[1743429484301,2.20313068,1820.7,1820.4,0.00823068]
[1743429484506,1.09879,1820.5,1820.4,0.00823068]
[1743429484801,2.20313068,1820.7,1820.6,1.09873]
[1743429485100,0.00823068,1820.7,1820.6,1.09873]
[1743429485295,6.8e-07,1820.7,1820.6,1.09873]
[1743429485494,6.8e-07,1820.7,1820.6,3.59873]
[1743429485686,6.8e-07,1820.7,1820.6,1.09873]
[1743429486089,6.8e-07,1820.7,1820.6,3.59873]
[1743429486494,6.8e-07,1820.7,1820.6,1.09873]
[1743429487006,6.8e-07,1820.7,1820.5,1.09877]
[1743429487007,1.09874,1820.6,1820.5,1.09877]
[1743429487202,2.2541,1820.6,1820.5,1.09877]
[1743429488199,2.2541,1820.6,1820.5,1.09879]
[1743429489103,6.8e-07,1820.7,1820.6,1.09873]
[1743429489802,1.09873068,1820.7,1820.5,4.30655]
[1743429490013,1.09879,1820.5,1820.4,0.00823068]
[1743429490397,4.6807,1820.5,1819.9,5.95569]
[1743429490598,10.82099,1820.4,1819.9,3.2078]
[1743429490799,1.09898,1820.2,1820.1,1.099]
[1743429490999,1.09898,1820.2,1820.0,1.09905]
[1743429491194,2.1807,1820.1,1820.0,1.09905]
[1743429491400,1.09909,1820.0,1819.9,0.00822999]
[1743429491702,2.1807,1820.1,1820.0,1.09909]
[1743429491903,3.27973,1820.1,1820.0,1.09909]
[1743429492199,2.1807,1820.1,1820.0,1.09909]
[1743429492395,3.27973,1820.1,1820.0,1.09909]
[1743429492807,3.27973,1820.1,1819.9,1.10733999]
[1743429493006,5.3885,1820.1,1819.9,0.00822999]
[1743429493301,1.09909,1820.0,1819.9,0.00822999]
[1743429493606,3.41679,1820.0,1819.9,0.00822999]
[1743429494600,2.3177,1820.0,1819.9,1.10737999]
[1743429494800,3.43497,1820.3,1819.9,2.75608999]
[1743429495005,2.3177,1820.2,1820.1,1.09903]
[1743429495210,2.336,1820.3,1820.1,1.09901]
[1743429495506,2.3177,1820.2,1820.1,1.09901]
[1743429497014,58.58680068,1820.7,1820.3,1.09891]
[1743429497307,2.3741,1820.6,1820.5,1.17405391]
[1743429498114,3.47283,1820.6,1820.5,0.07526391]
[1743429498709,2.3741,1820.6,1820.5,1.17405391]
[1743429498908,3.20780068,1820.7,1820.6,1.09873]
[1743429499412,6.8e-07,1820.7,1820.6,0.07526391]
[1743429499606,6.8e-07,1820.7,1820.6,1.17399391]
[1743429499806,1.09867068,1820.7,1820.6,0.07526391]
[1743429500214,4.30647068,1820.7,1820.6,0.07526391]
[1743429500506,4.30647068,1820.7,1820.6,1.17399391]
[1743429500714,1.09867068,1820.7,1820.6,0.07526391]
[1743429501305,4.30647068,1820.7,1820.6,0.07526391]
[1743429501512,1.09867068,1820.7,1820.6,0.07526391]
[1743429501808,1.09901,1820.2,1820.1,1.099]
[1743429502013,1.099,1820.2,1820.1,1.09899]
[1743429502205,1.09908,1820.1,1820.0,1.09906]
[1743429502605,3.48602,1820.2,1820.1,1.09903]
[1743429502809,3.48597,1820.2,1820.1,1.09903]
[1743429503198,3.48603,1820.2,1820.1,1.09903]
[1743429503805,1.09908,1820.1,1820.0,1.09906]
[1743429504006,3.48603,1820.1,1820.0,1.09906]
[1743429504211,2.387,1820.1,1820.0,1.09906]
[1743429504507,1.09909,1820.0,1819.9,1.10736999]
[1743429504913,1.09903,1820.2,1820.1,1.09901]
[1743429505106,1.09903,1820.1,1820.0,3.32176]
[1743429505308,1.09896,1820.3,1820.2,1.09897]
[1743429505510,2.252,1820.4,1820.0,4.97043]
[1743429505706,5.62007,1820.4,1820.3,1.09891]
[1743429506111,1.09891,1820.3,1820.2,2.2477]
[1743429506414,3.36815,1820.3,1820.2,1.09897]
[1743429506613,2.2692,1820.3,1820.2,1.09897]
[1743429507410,1.09903,1820.1,1820.0,3.34675]
[1743429508215,1.09903,1820.2,1820.1,1.09901]
[1743429508414,2.2957,1820.2,1820.1,1.09901]
[1743429508815,1.0989,1820.4,1820.1,4.30681]
[1743429509015,1.09891,1820.3,1820.2,3.42812]
[1743429509614,1.09908,1820.1,1819.9,3.21602999]
[1743429509819,1.09909,1820.0,1819.9,3.21602999]
[1743429510017,1.09909,1820.0,1819.9,0.00822999]
[1743429510215,1.09933,1819.7,1819.6,1.09931]
[1743429510406,1.09934,1819.6,1819.5,3.42857]
[1743429510606,1.0994,1819.5,1819.2,3.2078]
[1743429510813,2.2957,1819.4,1819.0,3.2078]
[1743429511014,1.09964,1819.1,1819.0,2.3292]
[1743429511316,3.21603068,1819.2,1818.6,2.3292]
[1743429511617,3.2078,1818.8,1818.5,0.02]
[1743429511928,4.30774,1818.6,1818.5,0.02]
[1743429512114,2.3238,1818.7,1818.6,1.09994]
[1743429512514,1.09977,1818.9,1818.7,1.09984]
[1743429513019,2.3238,1819.0,1818.5,8.2534]
[1743429513318,4.30758,1818.9,1818.7,1.09984]
[1743429513514,3.2078,1818.9,1818.6,1.09989]
[1743429513815,1.09994,1818.6,1818.5,2.2957]
[1743429514025,1.09994,1818.6,1818.5,0.02]
[1743429514217,3.42374,1818.6,1818.5,0.02]
[1743429514911,2.3238,1818.6,1818.5,0.02]
[1743429515118,3.42374,1818.6,1818.5,0.02]
[1743429515515,5.96682,1818.8,1818.6,1.09989]
[1743429515709,8.22954,1818.8,1818.6,3.36509]
[1743429515914,1.09994,1818.6,1818.5,0.02]
[1743429516213,4.30774,1818.6,1818.5,0.02]